Cogmind - Beta 11 X8 @@@ ROGUE MODE // 2021.10.21 @ 20:22:32 Player: arctifire Result: Self-destructed Performance ------------- Evolutions (0) 0 Regions Visited (4) 800 Robots Destroyed (10) 50 Value Destroyed (201) 201 Prototype IDs (0) 0 Alien Tech Used (0) 0 Bonus (49) 49 TOTAL SCORE: 1100 Bonus ------- Follower Combat Kills 49 Cogmind --------- Core Integrity 184/250 Matter 300/300 Energy 240/240 System Corruption 13% Temperature Cool (0) Movement Rolling (115) Ox1 Location -9/Mines Parts ------- > --- POWER (1) -------- Nuclear Core > --- PROPULSION (2) --- Compact Wheel Compact Wheel > --- UTILITY (2) ------ Improved Heat Sink High-capacity Storage Unit > --- WEAPON (2) ------- Shock Rifle Electrolaser > --- INVENTORY (20) --- Micro Nuclear Core Light Treads Light Treads Gravmag System Gravmag System Small Storage Unit Makeshift Sensor Array Improved Terrain Scanner Shock Rifle Medium Laser Small Laser Light Assault Rifle Makeshift Shrapnel Gun Grenade Launcher Peak State ------------ > --- POWER ------------ Nuclear Core > --- PROPULSION ------- Compact Wheel Compact Wheel > --- UTILITY ---------- Improved Heat Sink High-capacity Storage Unit > --- WEAPON ----------- Shock Rifle Electrolaser > --- INVENTORY -------- Micro Nuclear Core Light Treads Light Treads Gravmag System Gravmag System Small Storage Unit Makeshift Sensor Array Improved Terrain Scanner Shock Rifle Medium Laser Small Laser Light Assault Rifle Grenade Launcher [Rating: 18] Favorites ----------- Power Nuclear Core Engine Ion Engine Power Core Nuclear Core Propulsion Compact Wheel Leg Aluminum Leg Wheel Compact Wheel Utility High-capacity Storage Unit Device Improved Heat Sink Storage High-capacity Storage Unit Weapon Electrolaser Energy Gun Electrolaser Build | -11 -10 -10 -10 -9 ------- Run | Scr Mat Min Exi Min Slots Evolved . | . . . . . Power . | . . . . . Propulsion . | . . . . . Utility . | . . . . . Weapon . | . . . . . Parts Attached 12 | . 8 3 1 . Power 2 | . 1 1 . . Engine 1 | . 1 . . . Core 1 | . . 1 . . Reactor . | . . . . . Propulsion 3 | . 2 1 . . Treads . | . . . . . Leg . | . . . . . Wheel 3 | . 2 1 . . Hover . | . . . . . Flight . | . . . . . Utility 3 | . 3 . . . Device 1 | . 1 . . . Storage 2 | . 2 . . . Processor . | . . . . . Hackware . | . . . . . Protection . | . . . . . Artifact . | . . . . . Weapon 4 | . 2 1 1 . Energy Gun 4 | . 2 1 1 . Energy Cannon . | . . . . . Ballistic Gun . | . . . . . Ballistic Cannon . | . . . . . Launcher . | . . . . . Special Weapon . | . . . . . Impact Weapon . | . . . . . Slashing Weapon . | . . . . . Piercing Weapon . | . . . . . Special Melee Weapon . | . . . . . Unidentified Prototypes . | . . . . . Corrupted Parts 1 | . 1 . . . System Corruption 9 | . 9 . . . Parts Lost 4 | . 3 1 . . Power 1 | . 1 . . . Propulsion 1 | . . 1 . . Utility . | . . . . . Weapon 2 | . 2 . . . Highest Loss Streak 2 | . 2 1 . . Average Slot Usage (%) 96 | . 86 99 100 100 Engine 5 | . 13 11 . . Core 8 | . . 2 14 14 Leg 1 | . 5 . . . Wheel 26 | . 22 28 28 28 Device 11 | . 4 14 14 14 Storage 14 | . 14 14 14 14 Energy Gun 27 | . 25 28 28 28 Naked Turns . | . . . . . Heaviest Build 54 | 12 49 53 54 54 Greatest Support 32 | 20 32 32 32 32 Greatest Overweight (x) 3 | . 1 3 1 1 Average Overweight (x) . | . . 1 1 1 Largest Inventory Capacity 20 | 8 20 20 20 20 Average Capacity 18 | 8 14 20 20 20 Most Carried 14 | 6 6 7 14 14 Average Carried 8 | 6 4 5 10 14 Final Capacity 20 | 8 20 20 20 20 Final Carried 14 | 6 5 7 14 14 Class Distribution -------------------- 51% | Commander-Mutant 48% | Mutant Dominant Class ---------------- Mutant | -10/Materials Mutant | -10/Mines Commander-Mutant | -10/Exiles Commander-Mutant | -9/Mines Resources | -11 -10 -10 -10 -9 ----------- Run | Scr Mat Min Exi Min Matter Collected 369 | 200 54 33 73 9 Remotely . | . . . . . Salvage Created 435 | . 225 46 133 31 Parts 28 | . 9 5 9 5 Haulers Intercepted 1 | . 1 . . . Recyclers Shooed . | . . . . . Parts Field Recycled . | . . . . . Retrieved Matter . | . . . . . Parts Self-Destructed . | . . . . . Prevented . | . . . . . Kills | -11 -10 -10 -10 -9 ------- Run | Scr Mat Min Exi Min Combat Hostiles Destroyed 9 | . 4 3 . 2 Guns 9 | . 4 3 . 2 Classes Destroyed 3 | . 2 1 . . Hauler 1 | . 1 . . . Swarmer 5 | . . 3 . 2 Grunt 4 | . 4 . . . Best Kill Streak 3 | . 2 3 . 2 Combat Bots Only 3 | . 2 3 . 2 Max Kills in Single Turn 2 | . 1 2 . 1 Gunslinging . | . . . . . Exploded . | . . . . . Melee . | . . . . . Uniques/NPCs Destroyed . | . . . . . Combat | -11 -10 -10 -10 -9 -------- Run | Scr Mat Min Exi Min Damage Taken 392 | . 290 89 . 13 Core 66 | . 50 16 . . Absorbed by Shields . | . . . . . Core Remaining (%) 100 | 100 . . . . Volleys Fired 42 | . 31 5 3 3 Largest 2 | . 2 2 2 2 Hottest 113 | . 90 90 113 113 Shots Fired 68 | . 44 9 9 6 Gun 68 | . 44 9 9 6 Cannon . | . . . . . Launcher . | . . . . . Special . | . . . . . Kinetic . | . . . . . Thermal 45 | . 26 9 7 3 Explosive . | . . . . . Electromagnetic 23 | . 18 . 2 3 Robot Hit Streak 5 | . 5 2 3 4 Robot Miss Streak 3 | . 2 2 2 3 Penetration Max . | . . . . . Secondary Targets . | . . . . . Shots Hit Robots 42 | . 30 4 6 2 Core Hits 19 | . 10 3 4 2 Critical Kills . | . . . . . Critical Parts Destroyed . | . . . . . Critical Strikes 1 | . 1 . . . Burn 1 | . 1 . . . Melee Attacks . | . . . . . Impact . | . . . . . Slashing . | . . . . . Piercing . | . . . . . Sneak Attacks . | . . . . . Combat Hostiles . | . . . . . Follow-up Attacks . | . . . . . Damage Inflicted 552 | . 352 60 109 31 Guns 552 | . 352 60 109 31 Cannons . | . . . . . Explosions . | . . . . . Melee . | . . . . . Ramming . | . . . . . Kinetic . | . . . . . Thermal 362 | . 194 60 92 16 Explosive . | . . . . . Electromagnetic 190 | . 158 . 17 15 Impact . | . . . . . Slashing . | . . . . . Piercing . | . . . . . Highest Corruption 13 | . 13 13 13 13 Average Corruption 12 | . 9 13 13 13 Corruption Purged . | . . . . . Effects 62 | . 12 14 29 7 Message Errors 15 | . 2 4 6 3 Matter Fused 9 | . 2 2 5 . Heat Flow Errors 8 | . 2 3 3 . Energy Discharges 10 | . . 3 5 2 Data Loss (minor) 8 | . 2 1 5 . Data Loss (major) 3 | . 1 . 1 1 Misfires 4 | . 1 . 3 . Alerts 2 | . . . 1 1 Misdirections 1 | . 1 . . . Weapon Failures 2 | . 1 1 . . Overload Shots . | . . . . . Overflow Damage . | . . . . . Projectiles . | . . . . . Explosions . | . . . . . Melee . | . . . . . Knockbacks . | . . . . . Impact . | . . . . . Kinetic . | . . . . . Secondary . | . . . . . Self-Inflicted Damage . | . . . . . Shots . | . . . . . Rammed . | . . . . . Targets Rammed . | . . . . . Kicked . | . . . . . Crushed . | . . . . . Highest Temperature 293 | . 293 260 260 135 Average Temperature 111 | . 135 97 72 63 Received Heat Transfer 171 | . 162 9 . . Effects 6 | . 2 1 3 . Energy Bleed 1 | . . 1 . . Interference 5 | . 2 . 3 . Siege Activations . | . . . . . Robots Corrupted . | . . . . . Combat Hostiles . | . . . . . Parts Fried . | . . . . . Impact Corruptions . | . . . . . Robots Melted . | . . . . . Combat Hostiles . | . . . . . Parts Melted 2 | . 2 . . . Heat Transferred 942 | . 559 161 185 37 Parts Sabotaged . | . . . . . Parts Stolen . | . . . . . Parts Stripped . | . . . . . Power Chain Reactions . | . . . . . Missiles Intercepted . | . . . . . Alert | -11 -10 -10 -10 -9 ------- Run | Scr Mat Min Exi Min Peak Influence 312 | . 92 111 . 312 Initial 35 | . . 35 . . Average 75 | . 41 80 . 135 Maximum Alert Level 1 | . . . . 1 Low Security (%) 94 | 100 100 100 . 72 Level 1 5 | . . . . 27 Level 2 . | . . . . . Level 3 . | . . . . . Level 4 . | . . . . . Level 5 . | . . . . . High Security . | . . . . . Max Security . | . . . . . Squads Dispatched 1 | . . 1 . . Investigation 1 | . . 1 . . Extermination . | . . . . . Reinforcement . | . . . . . Assault . | . . . . . Garrison . | . . . . . Intercept . | . . . . . Construction Impeded . | . . . . . Haulers Reinforced . | . . . . . Active Scanning Responses . | . . . . . Cargo Convoy Interrupts . | . . . . . Stealth | -11 -10 -10 -10 -9 --------- Run | Scr Mat Min Exi Min Distress Signals . | . . . . . Communications Jammed . | . . . . . Distress Signals . | . . . . . Times Spotted 12 | . 5 3 . 4 Peak Tracking Total 3 | . 2 3 . 3 Tactical Retreats . | . . . . . Traps | -11 -10 -10 -10 -9 ------- Run | Scr Mat Min Exi Min Traps Triggered 2 | . 2 . . . Indirectly . | . . . . . Trap Hack Attempts . | . . . . . Triggered . | . . . . . Disarmed . | . . . . . Reprogrammed . | . . . . . Reused . | . . . . . Traps Extracted . | . . . . . Installed . | . . . . . Triggered . | . . . . . Machines | -11 -10 -10 -10 -9 ---------- Run | Scr Mat Min Exi Min Machines Disabled . | . . . . . Max in Single Turn . | . . . . . Machines Sabotaged . | . . . . . Garrisons Compromised . | . . . . . Overloaded Fab Kills . | . . . . . Hacking | -11 -10 -10 -10 -9 --------- Run | Scr Mat Min Exi Min Machines Accessed 1 | . . 1 . . Terminals . | . . . . . Fabricators . | . . . . . Repair Stations . | . . . . . Recycling Units . | . . . . . Scanalyzers . | . . . . . Garrison Access . | . . . . . Total Hacks 1 | . . 1 . . Successful 1 | . . 1 . . Failed . | . . . . . Catastrophic . | . . . . . Database Lockouts . | . . . . . Manual 2 | . . . 2 . Terminals . | . . . . . Fabricators . | . . . . . Repair Stations . | . . . . . Recycling Units . | . . . . . Scanalyzers . | . . . . . Garrison Access . | . . . . . Terminal Hacks 1 | . . 1 . . Open Door 1 | . . 1 . . Fabricator Hacks . | . . . . . Repair Station Hacks . | . . . . . Recycling Unit Hacks . | . . . . . Scanalyzer . | . . . . . Garrison Access Hacks . | . . . . . Unauthorized Hacks . | . . . . . Terminals . | . . . . . Fabricators . | . . . . . Repair Stations . | . . . . . Recycling Units . | . . . . . Scanalyzers . | . . . . . Garrison Access . | . . . . . Data Cores Recovered . | . . . . . Used . | . . . . . Hacking Detections . | . . . . . Full Trace Events . | . . . . . Feedback Events . | . . . . . Feedback Blocked . | . . . . . Robot Schematics Acquired . | . . . . . Robots Built . | . . . . . Authchips . | . . . . . Time . | . . . . . Total Robot Build Rating . | . . . . . Part Schematics Acquired . | . . . . . Parts Built . | . . . . . Authchips . | . . . . . Time . | . . . . . Total Part Build Rating . | . . . . . Parts Repaired . | . . . . . Time . | . . . . . Parts Recycled . | . . . . . Recycled Matter . | . . . . . Retrieved Matter . | . . . . . Retrieved Components . | . . . . . Parts Scanalyzed . | . . . . . Part Schematics Acquired . | . . . . . Parts Damaged . | . . . . . Bothacking | -11 -10 -10 -10 -9 ------------ Run | Scr Mat Min Exi Min Used RIF Installer . | . . . . . Robots Hacked . | . . . . . Non-combat . | . . . . . Combat . | . . . . . Robot Hacks Applied . | . . . . . Relay Couplers Released . | . . . . . Robots Rewired 4 | . . . 4 . Allies Hacked . | . . . . . Hacks Repelled . | . . . . . Allies | -11 -10 -10 -10 -9 -------- Run | Scr Mat Min Exi Min Total Allies 9 | . . 3 4 2 Largest Group 9 | . . 3 7 9 Highest-Rated Group 130 | . . 40 85 130 Highest-Rated Ally 31 | . . 16 21 31 Total Orders . | . . . . . Ally Attacks 58 | . . 18 . 40 Total Damage 405 | . . 102 . 303 Kills 9 | . . 1 . 8 Allies Corrupted . | . . . . . Allies Melted . | . . . . . Intel | -11 -10 -10 -10 -9 ------- Run | Scr Mat Min Exi Min Robot Analysis Total . | . . . . . Derelict Logs Recovered 3 | . . 1 . 2 Drone Launches . | . . . . . Drone Recoveries . | . . . . . Exploration | -11 -10 -10 -10 -9 ------------- Run | Scr Mat Min Exi Min Turns Passed 1596 | 2 373 340 698 183 Spaces Moved 1182 | 2 235 236 561 148 Core . | . . . . . Treads . | . . . . . Legs 63 | 2 61 . . . Wheels 1119 | . 174 236 561 148 Hover . | . . . . . Flight . | . . . . . Fastest Speed 100 | 120 100 115 115 115 Average Speed 114 | 120 114 115 115 115 Slowest Speed 145 | 120 120 145 115 115 Overloaded Moves . | . . . . . Propulsion Burnouts . | . . . . . Robots Hopped . | . . . . . Cave-ins Triggered . | . . . . . Exploration Rate (%) 44 | 2 45 52 87 34 Regions Visited 4 Branch Regions 3 Pre-discovered Areas 2 | . . . . 2 Known Exits Taken . | . . . . . Unknown Exits Taken 4 | 1 1 1 1 . Scrap Searched . | . . . . . Spaces Dug . | . . . . . Terrain Destroyed . | . . . . . Melee . | . . . . . Projectile . | . . . . . AOE . | . . . . . Terrain Rammed . | . . . . . Walls Destroyed . | . . . . . Machines Disabled . | . . . . . Actions | -11 -10 -10 -10 -9 --------- Run | Scr Mat Min Exi Min Total 1349 | 1 294 293 607 154 Wait 69 | . 16 47 3 3 Move 1178 | 1 234 235 560 148 Hop . | . . . . . Pick Up 10 | . 2 2 6 . Fast Attach 4 | . 3 1 . . Attach 3 | . 2 1 . . Detach . | . . . . . Swap 5 | . 3 1 1 . Drop 4 | . 3 1 . . Fire 42 | . 31 5 3 3 Melee . | . . . . . Ram . | . . . . . Kick . | . . . . . Crush . | . . . . . Escape Stasis . | . . . . . Rewire 34 | . . . 34 . Trap . | . . . . . Miscellaneous . | . . . . . Route ------- -11/Scrapyard -10/Materials (discovered 2 exits: [*Mat] / *Min) -10/Mines (discovered 2 exits: [*Mat] / *Exi) -10/Exiles -9/Mines History --------- Turn | Location | Event 1 | -11/Scrapyard | Discovered new exit (range 1) 3 | -11/Scrapyard | Entered Materials 135 | -10/Materials | System corruption reached 10% 306 | -10/Materials | Build established: Mutant 327 | -10/Materials | Discovered new exit (range 13) 362 | -10/Materials | Discovered new exit (range 13) 376 | -10/Materials | Entered Mines 380 | -10/Mines | Assisted by bots powering up and referring to "LRC-V3" 396 | -10/Mines | Met a Derelict bent on vengeance 483 | -10/Mines | Discovered new exit (range 7) 621 | -10/Mines | Learned 2 Materials zone layouts 642 | -10/Mines | Met a Derelict shopkeep closing up shop 701 | -10/Mines | Deemed a non-threat by the Exiles lab entrance 702 | -10/Mines | Discovered new exit (range 5) 716 | -10/Mines | Entered Exiles 716 | -10/Exiles | Found Exiles lab destroyed 716 | -10/Exiles | Accompanied by 3 allies 1081 | -10/Exiles | Build established: Commander-Mutant 1389 | -10/Exiles | Discovered new exit (range 14) 1414 | -10/Exiles | Entered Mines 1414 | -9/Mines | Accompanied by 7 allies 1501 | -9/Mines | Learned location of Recycling (-9) 1570 | -9/Mines | Assembled infested the area 1575 | -9/Mines | Assisted by a Guerilla fighting off Assembled 1597 | -9/Mines | Self-destructed Last Messages --------------- 01512_ System corrupted: Substantial component data lost. 01513_ K-01 Serf collects debris. 01528_ Acquired derelict log, extracted data. World map updated: -8/Materials. 01534_ System corrupted: IFF burst signal emitted. 01539_ S-10 Pest destroyed. 01540_ Commando 1a suffers critical hit (Destroy). 01542_ S-10 Pest destroyed. 01553_ K-01 Serf collects debris. 01568_ System corrupted: Energy discharge (-67). 01570_ ALERT: Infestation in the mines, dispatching Demolisher response squad. 01575_ A derelict emerges from the shadows: "You need to get out of here! I've been tracking a group of Assembled to figure out where they're coming from, and they're closing on this area, come on!" 01583_ K-01 Serf collects debris. 01584_ T-07 Excavator is excavating. 01591_ R/>1AD/||5=L0C9LOQU SW0 01591_ K-01 Serf collects debris. 01596_ Mercenary 1b destroyed. Map ----- +----------------------------------------------------+ | ??????????????????????????????????##### ########?? | | ?????????????????????????????????## ## #?? | | ?????????????????????????????????# #?? | | ?????????????????????????????????# #### #?? | | ?????????????????????????????????## #??# #?? | | ??????????????????????????????????### #?# ### | | ????????????????????????? ?????????## #?# | | ????????????????????????# ????????# #### | | ???????????????????????# ????????#####?# | | ??????????????????????# #??????????????# | | ?????????????????????# #??????????????# # | | ????????????????????? #??????????????## # | | ????????????????????# ???????????###### # | | ???????????????????# ?????????????# # | | ????????????????### ??????????????# ### | | ???????????????## ????????????????? ??# | | ???????????????# #?????????????????? ??## | | ???????????????# #??????????????????# #??## | | ????????????????# #??????????????????? #??## | | ????????????????# ##???????????????????# #?## | | ????????????????# #######??????????????# #?# | | ????????????????# #??????????????# ### | | ????????????????## ####k#??????????????# ## ### | | ???????????????###g#### ################ # ##?? | | ??????????????## g g #??? | | ?????????????## g @ t #??? | | ??????????#### g ######## ##### ##??? | | ?????# ##??????## rC #???####???? | | ??????###### #????????## ##??????????? | | ???????????#### #?????????### #???????????? | | ??????????????## ##???????????## = #???????????? | | ???????????????###??????????????##=%##???????????? | | ?????????????????????????????????#%##????????????? | | ????????????????????????????????? =#?????????????? | | ????????????????????????????????## #?????????????? | | ?????????????????????????????????#$#?????????????? | | ?????????????????????????????????# #?????????????? | | ?????????????????????????????????# #?????????????? | | ?????????????????????????????????? ??????????????? | | ??????????????????????????????????#??????????????? | | ?????????????????????????????????????????????????? | | ?????????????????????????????????????????????????? | | ?????????????????????????????????????????????????? | | ?????????????????????????????????????????????????? | | ?????????????????????????????????????????????????? | | ?????????????????????????????????????????????????? | | ?????????????????????????????????????????????????? | | ?????????????????????????????????????????????????? | | ?????????????????????????????????????????????????? | | ?????????????????????????????????????????????????? | +----------------------------------------------------+ Best States ------------- Heat Dissipation 39 Energy Generation 14 Energy Capacity 250 Matter Stores 300 Matter Capacity 300 Sight Range 16 Terrain Scan Density 10 Evasion (%) 55 Item Schematics ----------------- None Robot Schematics ------------------ None Fabricated ------------ Nothing Alien Tech Used ----------------- None Achievements -------------- None Challenges ------------ None Game ------ Seed SalvageDeuteriumAmplifier Manual? 0 Play Time 00:08:37 Cumulative 36.2 hours Start 2021.10.21 @ 20:14:35 End 2021.10.21 @ 20:22:32 Sessions 1 Manual Loads 0 Difficulty Rogue Special Mode None Game No. 48 Rogue 17 Adventurer 25 Explorer 6 Win Type - Total 0 Types 0/0/0/0/0/0/0/0/0 Lore% 21 Gallery% 45 Achievement% 55 Wizard Run 0 Options --------- ASCII 0 Keyboard 0 Movement Arrows Keybinds 0 Fullscreen 1 Font 18/SmallcapsGlow Map View 76x50 Tactical HUD 1 Map Filters NONE Filters NONE Steam 1 RUN: 3861c8a3-d133-4fc5-9371-730fb2386c54